[Event "Titled Tuesday Blitz August 08 Early 2023"]
[White "LionKing2367890"]
[Black "Warchol, Kamil"]
[BlackFideId "21858241"]
[WhiteElo "2201"]
[BlackElo "2448"]
[Result "1-0"]
[Round "4"]
[TimeControl "180+1"]
[Date "2023.08.08"]
[WhiteClock "0:00:05"]
[BlackClock "0:00:00"]
[Board "206"]

1. e4 {[%clk 0:03:00]}  c5 {[%clk 0:02:58]} 2. Nf3 {[%clk 0:03:01]}  d6 {[%clk 0:02:56]} 3. d4 {[%clk 0:03:01]}  cxd4 {[%clk 0:02:57]} 4. Nxd4 {[%clk 0:03:01]}  Nf6 {[%clk 0:02:56]} 5. f3 {[%clk 0:03:02]}  Nc6 {[%clk 0:02:52]} 6. c4 {[%clk 0:03:01]}  g6 {[%clk 0:02:44]} 7. Nc3 {[%clk 0:03:01]}  Bg7 {[%clk 0:02:44]} 8. Be3 {[%clk 0:03:01]}  O-O {[%clk 0:02:44]} 9. Be2 {[%clk 0:03:00]}  Qb6 {[%clk 0:02:42]} 10. Na4 {[%clk 0:02:57]}  Qc7 {[%clk 0:02:24]} 11. O-O {[%clk 0:02:51]}  Bd7 {[%clk 0:02:18]} 12. Nc3 {[%clk 0:02:50]}  Rac8 {[%clk 0:02:16]} 13. Qd2 {[%clk 0:02:46]}  Rfd8 {[%clk 0:02:13]} 14. Rac1 {[%clk 0:02:45]}  Qb8 {[%clk 0:02:10]} 15. Rfd1 {[%clk 0:02:34]}  Ne5 {[%clk 0:02:06]} 16. b3 {[%clk 0:02:33]}  a6 {[%clk 0:02:06]} 17. h3 {[%clk 0:02:26]}  Nc6 {[%clk 0:02:02]} 18. f4 {[%clk 0:02:24]}  e5 {[%clk 0:01:46]} 19. Nf3 {[%clk 0:02:21]}  Be6 {[%clk 0:01:40]} 20. Qc2 {[%clk 0:02:17]}  Nh5 {[%clk 0:01:32]} 21. fxe5 {[%clk 0:02:14]}  dxe5 {[%clk 0:01:30]} 22. Rxd8+ {[%clk 0:02:10]}  Rxd8 {[%clk 0:01:29]} 23. Rd1 {[%clk 0:02:10]}  Nf4 {[%clk 0:01:22]} 24. Bxf4 {[%clk 0:02:07]}  exf4 {[%clk 0:01:23]} 25. Nd5 {[%clk 0:02:07]}  Qa7+ {[%clk 0:01:18]} 26. Kh1 {[%clk 0:02:01]}  Bxd5 {[%clk 0:01:15]} 27. exd5 {[%clk 0:01:59]}  Nb4 {[%clk 0:01:11]} 28. Qd2 {[%clk 0:01:54]}  Qb6 {[%clk 0:01:03]} 29. a3 {[%clk 0:01:44]}  Nc6 {[%clk 0:01:03]} 30. Qxf4 {[%clk 0:01:37]}  Qxb3 {[%clk 0:00:56]} 31. Rd3 {[%clk 0:01:01]}  Qb1+ {[%clk 0:00:51]} 32. Kh2 {[%clk 0:01:01]}  Nb8 {[%clk 0:00:11]} 33. Qc7 {[%clk 0:00:56]}  Re8 {[%clk 0:00:12]} 34. Rd2 {[%clk 0:00:21]}  Qa1 {[%clk 0:00:08]} 35. d6 {[%clk 0:00:18]}  Be5+ {[%clk 0:00:08]} 36. Nxe5 {[%clk 0:00:18]}  Qxe5+ {[%clk 0:00:09]} 37. Kh1 {[%clk 0:00:18]}  Qa1+ {[%clk 0:00:09]} 38. Kh2 {[%clk 0:00:17]}  Qe5+ {[%clk 0:00:08]} 39. Kh1 {[%clk 0:00:18]}  Qa1+ {[%clk 0:00:08]} 40. Rd1 {[%clk 0:00:13]}  Qe5 {[%clk 0:00:08]} 41. Bf3 {[%clk 0:00:13]}  Qe6 {[%clk 0:00:01]} 42. Bxb7 {[%clk 0:00:05]}  Qe5 {[%clk 0:00:00]} 43. Bf3 {[%clk 0:00:05]} 1-0


[Site "https://www.chess.com"]

[Event "Titled Tuesday Blitz August 08 Early 2023"]
[White "TrompeterImEther"]
[Black "Novita, Anjas"]
[BlackFideId "7100949"]
[WhiteElo "2447"]
[BlackElo "2208"]
[Result "1-0"]
[Round "4"]
[TimeControl "180+1"]
[Date "2023.08.08"]
[WhiteClock "0:00:58"]
[BlackClock "0:00:12"]
[Board "207"]

1. e4 {[%clk 0:03:00]}  c5 {[%clk 0:02:58]} 2. Nf3 {[%clk 0:03:00]}  d6 {[%clk 0:02:58]} 3. d4 {[%clk 0:03:01]}  cxd4 {[%clk 0:02:59]} 4. Nxd4 {[%clk 0:03:01]}  Nf6 {[%clk 0:02:59]} 5. Nc3 {[%clk 0:03:02]}  a6 {[%clk 0:02:59]} 6. f3 {[%clk 0:03:01]}  e5 {[%clk 0:02:58]} 7. Nb3 {[%clk 0:03:02]}  Be6 {[%clk 0:02:59]} 8. Be3 {[%clk 0:03:02]}  d5 {[%clk 0:02:56]} 9. exd5 {[%clk 0:02:54]}  Nxd5 {[%clk 0:02:57]} 10. Nxd5 {[%clk 0:02:53]}  Qxd5 {[%clk 0:02:58]} 11. Qxd5 {[%clk 0:02:47]}  Bxd5 {[%clk 0:02:58]} 12. O-O-O {[%clk 0:02:48]}  Bc6 {[%clk 0:02:57]} 13. Na5 {[%clk 0:02:47]}  Bb4 {[%clk 0:02:57]} 14. Nxc6 {[%clk 0:02:46]}  Nxc6 {[%clk 0:02:58]} 15. c3 {[%clk 0:02:47]}  Be7 {[%clk 0:02:54]} 16. Bd3 {[%clk 0:02:44]}  Rd8 {[%clk 0:02:52]} 17. Be4 {[%clk 0:02:43]}  O-O {[%clk 0:02:47]} 18. g4 {[%clk 0:02:42]}  Rxd1+ {[%clk 0:02:46]} 19. Rxd1 {[%clk 0:02:43]}  Rd8 {[%clk 0:02:46]} 20. Rxd8+ {[%clk 0:02:42]}  Bxd8 {[%clk 0:02:47]} 21. b4 {[%clk 0:02:39]}  Bc7 {[%clk 0:02:30]} 22. a4 {[%clk 0:02:37]}  Kf8 {[%clk 0:02:20]} 23. Kb2 {[%clk 0:02:37]}  Ke7 {[%clk 0:02:18]} 24. Kb3 {[%clk 0:02:37]}  g6 {[%clk 0:02:14]} 25. b5 {[%clk 0:02:27]}  axb5 {[%clk 0:01:58]} 26. axb5 {[%clk 0:02:26]}  Nd8 {[%clk 0:01:58]} 27. b6 {[%clk 0:02:24]}  Bd6 {[%clk 0:01:50]} 28. c4 {[%clk 0:02:23]}  Ne6 {[%clk 0:01:50]} 29. Ka4 {[%clk 0:01:55]}  Nc5+ {[%clk 0:01:44]} 30. Bxc5 {[%clk 0:01:52]}  Bxc5 {[%clk 0:01:45]} 31. Kb5 {[%clk 0:01:53]}  Kd6 {[%clk 0:01:23]} 32. Bxb7 {[%clk 0:01:51]}  f5 {[%clk 0:01:23]} 33. gxf5 {[%clk 0:01:36]}  gxf5 {[%clk 0:01:23]} 34. Bd5 {[%clk 0:01:33]}  Bg1 {[%clk 0:01:13]} 35. h3 {[%clk 0:01:32]}  e4 {[%clk 0:01:12]} 36. fxe4 {[%clk 0:01:31]}  f4 {[%clk 0:01:13]} 37. Ka6 {[%clk 0:01:27]}  Bxb6 {[%clk 0:00:20]} 38. Kxb6 {[%clk 0:01:25]}  Ke5 {[%clk 0:00:21]} 39. c5 {[%clk 0:01:23]}  Kd4 {[%clk 0:00:20]} 40. c6 {[%clk 0:00:57]}  f3 {[%clk 0:00:12]} 41. Kb5 {[%clk 0:00:58]} 1-0


[Site "https://www.chess.com"]

[Event "Titled Tuesday Blitz August 08 Early 2023"]
[White "Kassimov, Baurzhan"]
[Black "Araujo Filho, Luiz Antonio Coel"]
[WhiteFideId "13704800"]
[BlackFideId "2130661"]
[WhiteElo "2442"]
[BlackElo "2181"]
[Result "1-0"]
[Round "4"]
[TimeControl "180+1"]
[Date "2023.08.08"]
[WhiteClock "0:00:32"]
[BlackClock "0:00:00"]
[Board "209"]

1. e4 {[%clk 0:02:57]}  c6 {[%clk 0:02:59]} 2. Nf3 {[%clk 0:02:54]}  d5 {[%clk 0:03:00]} 3. Nc3 {[%clk 0:02:55]}  dxe4 {[%clk 0:03:01]} 4. Nxe4 {[%clk 0:02:55]}  Nf6 {[%clk 0:03:01]} 5. Ng3 {[%clk 0:02:54]}  e6 {[%clk 0:02:59]} 6. d4 {[%clk 0:02:54]}  Be7 {[%clk 0:02:59]} 7. Bd3 {[%clk 0:02:54]}  O-O {[%clk 0:03:00]} 8. O-O {[%clk 0:02:54]}  Nbd7 {[%clk 0:03:00]} 9. Qe2 {[%clk 0:02:53]}  Qc7 {[%clk 0:02:59]} 10. c4 {[%clk 0:02:51]}  c5 {[%clk 0:02:59]} 11. d5 {[%clk 0:02:51]}  Nb6 {[%clk 0:02:53]} 12. Re1 {[%clk 0:02:50]}  Re8 {[%clk 0:02:50]} 13. dxe6 {[%clk 0:02:34]}  Bxe6 {[%clk 0:02:49]} 14. b3 {[%clk 0:02:32]}  Bg4 {[%clk 0:02:31]} 15. Bb2 {[%clk 0:02:17]}  Nbd7 {[%clk 0:02:30]} 16. Bf5 {[%clk 0:02:01]}  Bd6 {[%clk 0:02:10]} 17. Qd3 {[%clk 0:01:55]}  Bxf5 {[%clk 0:01:38]} 18. Nxf5 {[%clk 0:01:53]}  Be5 {[%clk 0:01:31]} 19. Nxe5 {[%clk 0:01:53]}  Nxe5 {[%clk 0:01:32]} 20. Qg3 {[%clk 0:01:53]}  Nfg4 {[%clk 0:00:46]} 21. Rxe5 {[%clk 0:01:40]}  Rxe5 {[%clk 0:00:33]} 22. Qxg4 {[%clk 0:01:40]}  g6 {[%clk 0:00:10]} 23. Ne3 {[%clk 0:01:02]}  Re6 {[%clk 0:00:08]} 24. h4 {[%clk 0:01:01]}  Rae8 {[%clk 0:00:04]} 25. Re1 {[%clk 0:00:44]}  Re4 {[%clk 0:00:04]} 26. Qg5 {[%clk 0:00:40]}  Qf4 {[%clk 0:00:02]} 27. Qxf4 {[%clk 0:00:40]}  Rxf4 {[%clk 0:00:03]} 28. g3 {[%clk 0:00:40]}  Rfe4 {[%clk 0:00:03]} 29. Rd1 {[%clk 0:00:41]}  f5 {[%clk 0:00:03]} 30. Kg2 {[%clk 0:00:39]}  b6 {[%clk 0:00:02]} 31. Nd5 {[%clk 0:00:39]}  Re2 {[%clk 0:00:02]} 32. Nf6+ {[%clk 0:00:39]}  Kf7 {[%clk 0:00:02]} 33. Nxe8 {[%clk 0:00:40]}  Kxe8 {[%clk 0:00:03]} 34. Rb1 {[%clk 0:00:34]}  Kd7 {[%clk 0:00:03]} 35. a4 {[%clk 0:00:33]}  Rc2 {[%clk 0:00:03]} 36. Be5 {[%clk 0:00:32]}  Kc6 {[%clk 0:00:00]} 37. Kf3 {[%clk 0:00:32]} 1-0


[Site "https://www.chess.com"]

[Event "Titled Tuesday Blitz August 08 Early 2023"]
[White "Falbo, Sandro"]
[Black "Kazakov, Mikhail"]
[WhiteFideId "810444"]
[BlackFideId "14102749"]
[WhiteElo "2175"]
[BlackElo "2441"]
[Result "1-0"]
[Round "4"]
[TimeControl "180+1"]
[Date "2023.08.08"]
[WhiteClock "0:00:01"]
[BlackClock "0:00:00"]
[Board "210"]

1. c4 {[%clk 0:03:00]}  Nf6 {[%clk 0:02:54]} 2. Nc3 {[%clk 0:02:59]}  e6 {[%clk 0:02:55]} 3. e4 {[%clk 0:02:59]}  d6 {[%clk 0:02:55]} 4. d4 {[%clk 0:02:57]}  Nc6 {[%clk 0:02:53]} 5. Be2 {[%clk 0:02:53]}  e5 {[%clk 0:02:53]} 6. d5 {[%clk 0:02:48]}  Nb8 {[%clk 0:02:51]} 7. Be3 {[%clk 0:02:46]}  Be7 {[%clk 0:02:51]} 8. h3 {[%clk 0:02:46]}  a5 {[%clk 0:02:52]} 9. Nf3 {[%clk 0:02:44]}  Na6 {[%clk 0:02:52]} 10. Nd2 {[%clk 0:02:41]}  b6 {[%clk 0:02:52]} 11. g4 {[%clk 0:02:37]}  Nd7 {[%clk 0:02:49]} 12. Nf1 {[%clk 0:02:37]}  Bg5 {[%clk 0:02:46]} 13. Qd2 {[%clk 0:02:32]}  Bxe3 {[%clk 0:02:45]} 14. Nxe3 {[%clk 0:02:23]}  Nac5 {[%clk 0:02:41]} 15. Nf5 {[%clk 0:02:15]}  O-O {[%clk 0:02:31]} 16. O-O-O {[%clk 0:02:07]}  a4 {[%clk 0:02:29]} 17. g5 {[%clk 0:01:50]}  Re8 {[%clk 0:02:20]} 18. Rhg1 {[%clk 0:01:49]}  Nf8 {[%clk 0:02:19]} 19. Bd3 {[%clk 0:01:41]}  Bxf5 {[%clk 0:02:08]} 20. exf5 {[%clk 0:01:39]}  e4 {[%clk 0:02:06]} 21. Be2 {[%clk 0:01:34]}  Qe7 {[%clk 0:02:00]} 22. Nb5 {[%clk 0:01:27]}  a3 {[%clk 0:01:42]} 23. b4 {[%clk 0:01:25]}  Na6 {[%clk 0:01:13]} 24. Qc3 {[%clk 0:01:17]}  Qe5 {[%clk 0:01:05]} 25. Kc2 {[%clk 0:01:14]}  Qxf5 {[%clk 0:01:01]} 26. Rdf1 {[%clk 0:00:48]}  Ng6 {[%clk 0:00:52]} 27. Bg4 {[%clk 0:00:44]}  Qf4 {[%clk 0:00:41]} 28. Bd7 {[%clk 0:00:42]}  Re7 {[%clk 0:00:35]} 29. Bc6 {[%clk 0:00:42]}  Rb8 {[%clk 0:00:30]} 30. Kb3 {[%clk 0:00:39]}  Ne5 {[%clk 0:00:24]} 31. Nd4 {[%clk 0:00:37]}  Nf3 {[%clk 0:00:18]} 32. Nxf3 {[%clk 0:00:34]}  exf3 {[%clk 0:00:19]} 33. Re1 {[%clk 0:00:30]}  Re2 {[%clk 0:00:18]} 34. Rxe2 {[%clk 0:00:23]}  fxe2 {[%clk 0:00:19]} 35. Re1 {[%clk 0:00:23]}  Qxf2 {[%clk 0:00:18]} 36. Qd2 {[%clk 0:00:20]}  Rd8 {[%clk 0:00:12]} 37. Rxe2 {[%clk 0:00:19]}  Qg3+ {[%clk 0:00:11]} 38. Re3 {[%clk 0:00:19]}  Qg1 {[%clk 0:00:09]} 39. Qe2 {[%clk 0:00:11]}  g6 {[%clk 0:00:08]} 40. Re8+ {[%clk 0:00:08]}  Rxe8 {[%clk 0:00:08]} 41. Qxe8+ {[%clk 0:00:09]}  Kg7 {[%clk 0:00:08]} 42. Qe2 {[%clk 0:00:07]}  Qxg5 {[%clk 0:00:06]} 43. Kxa3 {[%clk 0:00:03]}  Qg3+ {[%clk 0:00:06]} 44. Ka4 {[%clk 0:00:02]}  Qc3 {[%clk 0:00:06]} 45. a3 {[%clk 0:00:01]}  Nb8 {[%clk 0:00:04]} 46. Bb5 {[%clk 0:00:01]}  h5 {[%clk 0:00:00]} 47. Qe8 {[%clk 0:00:01]} 1-0


[Site "https://www.chess.com"]

[Event "Titled Tuesday Blitz August 08 Early 2023"]
[White "Novikov, Evgenij"]
[Black "Grigoryan, Meri"]
[WhiteFideId "4125380"]
[BlackFideId "13300571"]
[WhiteElo "2441"]
[BlackElo "2175"]
[Result "1-0"]
[Round "4"]
[TimeControl "180+1"]
[Date "2023.08.08"]
[WhiteClock "0:00:04"]
[BlackClock "0:00:00"]
[Board "211"]

1. e4 {[%clk 0:02:57]}  e5 {[%clk 0:02:59]} 2. f4 {[%clk 0:02:53]}  d5 {[%clk 0:02:59]} 3. d4 {[%clk 0:02:50]}  dxe4 {[%clk 0:02:25]} 4. fxe5 {[%clk 0:02:47]}  Bf5 {[%clk 0:01:56]} 5. Ne2 {[%clk 0:02:37]}  Nc6 {[%clk 0:01:41]} 6. Be3 {[%clk 0:02:30]}  f6 {[%clk 0:01:35]} 7. Ng3 {[%clk 0:02:29]}  Qd7 {[%clk 0:01:29]} 8. Be2 {[%clk 0:02:18]}  fxe5 {[%clk 0:01:24]} 9. O-O {[%clk 0:02:17]}  Bg6 {[%clk 0:01:03]} 10. Bg4 {[%clk 0:02:12]}  Qd6 {[%clk 0:00:49]} 11. Nc3 {[%clk 0:01:57]}  Nf6 {[%clk 0:00:49]} 12. d5 {[%clk 0:01:22]}  Nb4 {[%clk 0:00:49]} 13. Rxf6 {[%clk 0:01:20]}  gxf6 {[%clk 0:00:49]} 14. Ngxe4 {[%clk 0:01:15]}  Qe7 {[%clk 0:00:37]} 15. a3 {[%clk 0:01:02]}  Na6 {[%clk 0:00:26]} 16. d6 {[%clk 0:01:01]}  Qg7 {[%clk 0:00:10]} 17. Bh6 {[%clk 0:00:39]}  Qf7 {[%clk 0:00:08]} 18. d7+ {[%clk 0:00:22]}  Kd8 {[%clk 0:00:06]} 19. Qf3 {[%clk 0:00:19]}  f5 {[%clk 0:00:05]} 20. Bg5+ {[%clk 0:00:17]}  Be7 {[%clk 0:00:04]} 21. Bxe7+ {[%clk 0:00:15]}  Qxe7 {[%clk 0:00:05]} 22. Bxf5 {[%clk 0:00:14]}  Rf8 {[%clk 0:00:05]} 23. g4 {[%clk 0:00:13]}  c6 {[%clk 0:00:03]} 24. Rd1 {[%clk 0:00:11]}  Nc7 {[%clk 0:00:03]} 25. b4 {[%clk 0:00:10]}  a5 {[%clk 0:00:02]} 26. b5 {[%clk 0:00:09]}  cxb5 {[%clk 0:00:02]} 27. Nd5 {[%clk 0:00:07]}  Qxa3 {[%clk 0:00:01]} 28. Qxa3 {[%clk 0:00:05]}  b4 {[%clk 0:00:01]} 29. Nxb4 {[%clk 0:00:04]}  axb4 {[%clk 0:00:00]} 30. Qxb4 {[%clk 0:00:04]} 1-0


[Site "https://www.chess.com"]

[Event "Titled Tuesday Blitz August 08 Early 2023"]
[White "Putri, Regita Desyari"]
[Black "WindWhistler11"]
[WhiteFideId "7109083"]
[WhiteElo "2154"]
[BlackElo "2434"]
[Result "0-1"]
[Round "4"]
[TimeControl "180+1"]
[Date "2023.08.08"]
[WhiteClock "0:00:00"]
[BlackClock "0:00:34"]
[Board "215"]

1. d4 {[%clk 0:02:59]}  Nf6 {[%clk 0:02:55]} 2. c4 {[%clk 0:02:59]}  e6 {[%clk 0:02:56]} 3. Nf3 {[%clk 0:02:58]}  c5 {[%clk 0:02:56]} 4. d5 {[%clk 0:02:56]}  exd5 {[%clk 0:02:57]} 5. cxd5 {[%clk 0:02:57]}  Bd6 {[%clk 0:02:58]} 6. Nc3 {[%clk 0:02:54]}  O-O {[%clk 0:02:58]} 7. Bg5 {[%clk 0:02:43]}  Re8 {[%clk 0:02:58]} 8. e3 {[%clk 0:02:42]}  Bc7 {[%clk 0:02:55]} 9. d6 {[%clk 0:02:27]}  Ba5 {[%clk 0:02:55]} 10. Bc4 {[%clk 0:02:25]}  h6 {[%clk 0:02:53]} 11. Bh4 {[%clk 0:02:23]}  b6 {[%clk 0:02:52]} 12. O-O {[%clk 0:02:23]}  Bxc3 {[%clk 0:02:49]} 13. bxc3 {[%clk 0:02:23]}  Ba6 {[%clk 0:02:44]} 14. Bxa6 {[%clk 0:02:14]}  Nxa6 {[%clk 0:02:45]} 15. Qd3 {[%clk 0:02:14]}  Nb8 {[%clk 0:02:42]} 16. Rfe1 {[%clk 0:02:08]}  Nc6 {[%clk 0:02:29]} 17. e4 {[%clk 0:02:07]}  g5 {[%clk 0:02:09]} 18. Bg3 {[%clk 0:01:00]}  Nh5 {[%clk 0:02:09]} 19. e5 {[%clk 0:00:33]}  Re6 {[%clk 0:02:01]} 20. Qf5 {[%clk 0:00:29]}  Qf8 {[%clk 0:01:56]} 21. Re4 {[%clk 0:00:23]}  Rae8 {[%clk 0:01:44]} 22. Rae1 {[%clk 0:00:24]}  Qg7 {[%clk 0:01:43]} 23. h3 {[%clk 0:00:21]}  Nxg3 {[%clk 0:01:38]} 24. fxg3 {[%clk 0:00:22]}  b5 {[%clk 0:01:21]} 25. h4 {[%clk 0:00:17]}  Qg6 {[%clk 0:01:13]} 26. g4 {[%clk 0:00:15]}  gxh4 {[%clk 0:00:59]} 27. Nxh4 {[%clk 0:00:15]}  Qxf5 {[%clk 0:00:55]} 28. Nxf5 {[%clk 0:00:06]}  Kh7 {[%clk 0:00:51]} 29. g5 {[%clk 0:00:02]}  Rxe5 {[%clk 0:00:47]} 30. Rxe5 {[%clk 0:00:02]}  Rxe5 {[%clk 0:00:47]} 31. Rxe5 {[%clk 0:00:03]}  Nxe5 {[%clk 0:00:48]} 32. Nxh6 {[%clk 0:00:04]}  Kg6 {[%clk 0:00:47]} 33. Ng8 {[%clk 0:00:03]}  Kxg5 {[%clk 0:00:43]} 34. Ne7 {[%clk 0:00:04]}  Kf6 {[%clk 0:00:41]} 35. Nc8 {[%clk 0:00:04]}  a6 {[%clk 0:00:40]} 36. Kf2 {[%clk 0:00:04]}  Nd3+ {[%clk 0:00:34]} 37. Ke3 {[%clk 0:00:04]}  Nc1 {[%clk 0:00:35]} 38. a3 {[%clk 0:00:03]}  Ke6 {[%clk 0:00:34]} 39. Kd2 {[%clk 0:00:02]}  Nb3+ {[%clk 0:00:34]} 40. Kc2 {[%clk 0:00:02]}  Na5 {[%clk 0:00:35]} 41. Kd3 {[%clk 0:00:02]}  Nc4 {[%clk 0:00:35]} 42. a4 {[%clk 0:00:00]}  Nxd6 {[%clk 0:00:34]} 0-1


[Site "https://www.chess.com"]

[Event "Titled Tuesday Blitz August 08 Early 2023"]
[White "Sliwicki, Damian"]
[Black "Thorsteinsdottir, Hallgerdur"]
[WhiteFideId "1127128"]
[BlackFideId "2302454"]
[WhiteElo "2430"]
[BlackElo "2134"]
[Result "0-1"]
[Round "4"]
[TimeControl "180+1"]
[Date "2023.08.08"]
[WhiteClock "0:00:05"]
[BlackClock "0:00:47"]
[Board "216"]

1. e4 {[%clk 0:01:03]}  d5 {[%clk 0:02:50]} 2. exd5 {[%clk 0:01:00]}  Qxd5 {[%clk 0:02:47]} 3. Nf3 {[%clk 0:01:01]}  Nf6 {[%clk 0:02:40]} 4. d4 {[%clk 0:00:58]}  Bg4 {[%clk 0:02:36]} 5. Be2 {[%clk 0:00:55]}  e6 {[%clk 0:02:33]} 6. O-O {[%clk 0:00:55]}  Be7 {[%clk 0:02:33]} 7. c4 {[%clk 0:00:55]}  Qd8 {[%clk 0:02:32]} 8. h3 {[%clk 0:00:54]}  Bh5 {[%clk 0:02:32]} 9. Nc3 {[%clk 0:00:55]}  c6 {[%clk 0:02:32]} 10. Bf4 {[%clk 0:00:52]}  O-O {[%clk 0:02:31]} 11. Qd2 {[%clk 0:00:48]}  Nbd7 {[%clk 0:02:29]} 12. Rad1 {[%clk 0:00:47]}  Nb6 {[%clk 0:02:29]} 13. b3 {[%clk 0:00:46]}  Bg6 {[%clk 0:02:22]} 14. Ne5 {[%clk 0:00:46]}  Ne4 {[%clk 0:02:17]} 15. Nxe4 {[%clk 0:00:45]}  Bxe4 {[%clk 0:02:17]} 16. Qe3 {[%clk 0:00:46]}  Bg6 {[%clk 0:02:16]} 17. Bf3 {[%clk 0:00:46]}  a5 {[%clk 0:02:06]} 18. d5 {[%clk 0:00:46]}  cxd5 {[%clk 0:02:00]} 19. cxd5 {[%clk 0:00:44]}  Nxd5 {[%clk 0:01:50]} 20. Bxd5 {[%clk 0:00:44]}  exd5 {[%clk 0:01:50]} 21. Nxg6 {[%clk 0:00:43]}  hxg6 {[%clk 0:01:49]} 22. Qf3 {[%clk 0:00:42]}  d4 {[%clk 0:01:32]} 23. Qxb7 {[%clk 0:00:43]}  Bf6 {[%clk 0:01:30]} 24. Rfe1 {[%clk 0:00:38]}  Qc8 {[%clk 0:01:23]} 25. Qd5 {[%clk 0:00:31]}  Rd8 {[%clk 0:01:21]} 26. Qf3 {[%clk 0:00:26]}  Qc2 {[%clk 0:01:19]} 27. Be5 {[%clk 0:00:23]}  Bxe5 {[%clk 0:01:14]} 28. Rxe5 {[%clk 0:00:24]}  Qxa2 {[%clk 0:01:13]} 29. Rxd4 {[%clk 0:00:22]}  Qa1+ {[%clk 0:01:11]} 30. Kh2 {[%clk 0:00:14]}  Qxd4 {[%clk 0:01:09]} 31. Qg3 {[%clk 0:00:10]}  a4 {[%clk 0:01:04]} 32. bxa4 {[%clk 0:00:09]}  Rxa4 {[%clk 0:01:02]} 33. f3 {[%clk 0:00:09]}  Qf4 {[%clk 0:01:02]} 34. Re7 {[%clk 0:00:06]}  Rd1 {[%clk 0:00:53]} 35. Re8+ {[%clk 0:00:01]}  Kh7 {[%clk 0:00:53]} 36. Qxf4 {[%clk 0:00:02]}  Rxf4 {[%clk 0:00:53]} 37. Kg3 {[%clk 0:00:03]}  Rf5 {[%clk 0:00:52]} 38. h4 {[%clk 0:00:03]}  Rd2 {[%clk 0:00:52]} 39. Kg4 {[%clk 0:00:04]}  Rxg2+ {[%clk 0:00:51]} 40. Kh3 {[%clk 0:00:04]}  Rg1 {[%clk 0:00:51]} 41. Kh2 {[%clk 0:00:04]}  Rf1 {[%clk 0:00:50]} 42. h5 {[%clk 0:00:04]}  R1xf3 {[%clk 0:00:49]} 43. Kg2 {[%clk 0:00:05]}  Rf2+ {[%clk 0:00:48]} 44. Kg3 {[%clk 0:00:05]}  Rf1 {[%clk 0:00:47]} 45. hxg6+ {[%clk 0:00:05]}  Kxg6 {[%clk 0:00:46]} 46. Kg4 {[%clk 0:00:05]}  Rg5+ {[%clk 0:00:46]} 47. Kh4 {[%clk 0:00:05]}  Rh1# {[%clk 0:00:47]} 0-1


[Site "https://www.chess.com"]

[Event "Titled Tuesday Blitz August 08 Early 2023"]
[White "Namitbir Singh Walia"]
[Black "Haukenfrers, Dale"]
[WhiteFideId "35071068"]
[BlackFideId "2603780"]
[WhiteElo "2428"]
[BlackElo "2119"]
[Result "1/2-1/2"]
[Round "4"]
[TimeControl "180+1"]
[Date "2023.08.08"]
[WhiteClock "0:00:10"]
[BlackClock "0:00:06"]
[Board "217"]

1. e4 {[%clk 0:03:00]}  d6 {[%clk 0:03:00]} 2. d4 {[%clk 0:03:00]}  g6 {[%clk 0:03:01]} 3. Nc3 {[%clk 0:02:59]}  c6 {[%clk 0:03:00]} 4. Nf3 {[%clk 0:02:58]}  b5 {[%clk 0:03:00]} 5. a3 {[%clk 0:02:56]}  Bb7 {[%clk 0:03:00]} 6. Bf4 {[%clk 0:02:55]}  Nf6 {[%clk 0:02:55]} 7. Bd3 {[%clk 0:02:55]}  Nh5 {[%clk 0:02:54]} 8. Be3 {[%clk 0:02:54]}  a6 {[%clk 0:02:48]} 9. Qd2 {[%clk 0:02:52]}  Qc7 {[%clk 0:02:43]} 10. O-O-O {[%clk 0:02:49]}  Nd7 {[%clk 0:02:41]} 11. Kb1 {[%clk 0:02:16]}  Bg7 {[%clk 0:02:30]} 12. Rhe1 {[%clk 0:01:47]}  O-O {[%clk 0:02:29]} 13. Bh6 {[%clk 0:01:44]}  Nb6 {[%clk 0:02:18]} 14. e5 {[%clk 0:01:39]}  c5 {[%clk 0:01:59]} 15. dxc5 {[%clk 0:01:36]}  dxc5 {[%clk 0:01:55]} 16. Bxg7 {[%clk 0:01:16]}  Kxg7 {[%clk 0:01:50]} 17. Be4 {[%clk 0:01:16]}  Nc4 {[%clk 0:01:45]} 18. Qg5 {[%clk 0:01:14]}  b4 {[%clk 0:01:34]} 19. axb4 {[%clk 0:01:12]}  cxb4 {[%clk 0:01:33]} 20. Nd5 {[%clk 0:01:03]}  Bxd5 {[%clk 0:01:29]} 21. Bxd5 {[%clk 0:01:04]}  Nxb2 {[%clk 0:01:29]} 22. Kxb2 {[%clk 0:00:57]}  Qc3+ {[%clk 0:01:29]} 23. Kb1 {[%clk 0:00:57]}  b3 {[%clk 0:01:17]} 24. Bxb3 {[%clk 0:00:56]}  Rab8 {[%clk 0:01:16]} 25. Re3 {[%clk 0:00:50]}  Qb4 {[%clk 0:01:05]} 26. Rd4 {[%clk 0:00:46]}  Qa3 {[%clk 0:01:01]} 27. Nh4 {[%clk 0:00:45]}  Rfd8 {[%clk 0:00:54]} 28. Qg4 {[%clk 0:00:22]}  a5 {[%clk 0:00:32]} 29. Red3 {[%clk 0:00:19]}  Rxd4 {[%clk 0:00:23]} 30. Qxd4 {[%clk 0:00:17]}  a4 {[%clk 0:00:20]} 31. e6+ {[%clk 0:00:17]}  f6 {[%clk 0:00:20]} 32. Qc4 {[%clk 0:00:10]}  axb3 {[%clk 0:00:18]} 33. Rxb3 {[%clk 0:00:10]}  Rxb3+ {[%clk 0:00:16]} 34. Qxb3 {[%clk 0:00:11]}  Qd6 {[%clk 0:00:15]} 35. Nf3 {[%clk 0:00:11]}  Nf4 {[%clk 0:00:12]} 36. g3 {[%clk 0:00:08]}  Nxe6 {[%clk 0:00:11]} 37. Kb2 {[%clk 0:00:05]}  Nc5 {[%clk 0:00:10]} 38. Qa3 {[%clk 0:00:04]}  Ne4 {[%clk 0:00:07]} 39. Qd3 {[%clk 0:00:03]}  Qxd3 {[%clk 0:00:06]} 40. cxd3 {[%clk 0:00:03]}  Nd6 {[%clk 0:00:06]} 41. Kc3 {[%clk 0:00:04]}  e5 {[%clk 0:00:06]} 42. d4 {[%clk 0:00:03]}  Ne4+ {[%clk 0:00:04]} 43. Kc4 {[%clk 0:00:03]}  exd4 {[%clk 0:00:03]} 44. Kxd4 {[%clk 0:00:02]}  Nxf2 {[%clk 0:00:04]} 45. h4 {[%clk 0:00:02]}  Ng4 {[%clk 0:00:04]} 46. Ke4 {[%clk 0:00:02]}  f5+ {[%clk 0:00:03]} 47. Kf4 {[%clk 0:00:02]}  h6 {[%clk 0:00:04]} 48. Ne5 {[%clk 0:00:02]}  Nxe5 {[%clk 0:00:03]} 49. Kxe5 {[%clk 0:00:03]}  Kf7 {[%clk 0:00:03]} 50. h5 {[%clk 0:00:03]}  gxh5 {[%clk 0:00:02]} 51. Kxf5 {[%clk 0:00:03]}  Kg7 {[%clk 0:00:02]} 52. Kf4 {[%clk 0:00:01]}  Kf6 {[%clk 0:00:02]} 53. Ke4 {[%clk 0:00:01]}  Kg5 {[%clk 0:00:02]} 54. Kf3 {[%clk 0:00:02]}  Kf5 {[%clk 0:00:03]} 55. Kg2 {[%clk 0:00:02]}  Kg4 {[%clk 0:00:03]} 56. Kh2 {[%clk 0:00:03]}  h4 {[%clk 0:00:03]} 57. gxh4 {[%clk 0:00:04]}  Kxh4 {[%clk 0:00:03]} 58. Kh1 {[%clk 0:00:05]}  Kg3 {[%clk 0:00:03]} 59. Kg1 {[%clk 0:00:06]}  Kh3 {[%clk 0:00:04]} 60. Kh1 {[%clk 0:00:07]}  Kg3 {[%clk 0:00:04]} 61. Kg1 {[%clk 0:00:07]}  h5 {[%clk 0:00:05]} 62. Kh1 {[%clk 0:00:08]}  h4 {[%clk 0:00:05]} 63. Kg1 {[%clk 0:00:09]}  h3 {[%clk 0:00:06]} 64. Kh1 {[%clk 0:00:10]}  h2 {[%clk 0:00:06]} 1/2-1/2


[Site "https://www.chess.com"]